[Event "*** Titled Tuesday Blitz"]
[Site "Chess.com"]
[Date "2020.11.10"]
[Round "6"]
[White "Aygehovit1992"]
[Black "indfraeng"]
[Result "1-0"]
[WhiteElo "2677"]
[BlackElo "2397"]
[TimeControl "180+1"]
[EndTime "11:10:59 PST"]
[Termination "Aygehovit1992 won by resignation"]

1. d4 {[%clk 0:03:00.9]} 1... d5 {[%clk 0:02:57.9]} 2. Nf3 {[%clk 0:03:01.3]}
2... Nf6 {[%clk 0:02:55.8]} 3. c4 {[%clk 0:03:01.2]} 3... c6 {[%clk 0:02:55.8]}
4. Nc3 {[%clk 0:03:01.5]} 4... e6 {[%clk 0:02:55.8]} 5. e3 {[%clk 0:02:59.1]}
5... Nbd7 {[%clk 0:02:56.1]} 6. Qc2 {[%clk 0:02:58.1]} 6... Bd6 {[%clk
0:02:54.1]} 7. g4 {[%clk 0:02:57.3]} 7... Bb4 {[%clk 0:02:54.3]} 8. Bd2 {[%clk
0:02:52.8]} 8... b6 {[%clk 0:02:21.6]} 9. g5 {[%clk 0:02:36.2]} 9... Bxc3 {[%clk
0:02:14.5]} 10. Bxc3 {[%clk 0:02:37.1]} 10... Ne4 {[%clk 0:02:14.9]} 11. Bd3
{[%clk 0:02:37.6]} 11... Nxg5 {[%clk 0:02:11.2]} 12. Nxg5 {[%clk 0:02:37.2]}
12... Qxg5 {[%clk 0:02:12.1]} 13. O-O-O {[%clk 0:02:38]} 13... g6 {[%clk
0:02:10.9]} 14. h4 {[%clk 0:02:36.1]} 14... Qh5 {[%clk 0:02:08.3]} 15. Rdg1
{[%clk 0:02:30.6]} 15... Bb7 {[%clk 0:02:06.7]} 16. cxd5 {[%clk 0:02:14.4]}
16... exd5 {[%clk 0:02:01]} 17. Be2 {[%clk 0:02:02.5]} 17... Qf5 {[%clk
0:01:54.2]} 18. Qxf5 {[%clk 0:02:01.9]} 18... gxf5 {[%clk 0:01:55.1]} 19. Rg5
{[%clk 0:02:02.5]} 19... f4 {[%clk 0:01:49.5]} 20. exf4 {[%clk 0:01:38.7]} 20...
O-O-O {[%clk 0:01:47]} 21. Rf5 {[%clk 0:01:34.8]} 21... Rde8 {[%clk 0:01:42.7]}
22. Bg4 {[%clk 0:01:32.8]} 22... Rhg8 {[%clk 0:01:41.5]} 23. f3 {[%clk 0:01:25]}
23... Rg7 {[%clk 0:01:36.3]} 24. h5 {[%clk 0:01:22.6]} 24... h6 {[%clk
0:01:35.1]} 25. Re1 {[%clk 0:01:14.3]} 25... Rxe1+ {[%clk 0:01:33.4]} 26. Bxe1
{[%clk 0:01:15.2]} 26... Kd8 {[%clk 0:01:33.7]} 27. Bh4+ {[%clk 0:01:15.5]}
27... Ke8 {[%clk 0:01:31.3]} 28. Kd2 {[%clk 0:01:03.4]} 28... Ba6 {[%clk
0:01:27.9]} 29. Ke3 {[%clk 0:01:02.7]} 29... Rg8 {[%clk 0:01:17.1]} 30. a3
{[%clk 0:00:58.2]} 30... Bc8 {[%clk 0:01:15.6]} 31. b4 {[%clk 0:00:54.1]} 31...
b5 {[%clk 0:01:12.3]} 32. Kf2 {[%clk 0:00:40.1]} 32... Kf8 {[%clk 0:01:09.8]}
33. Bd8 {[%clk 0:00:35.5]} 33... Kg7 {[%clk 0:01:07]} 34. Bc7 {[%clk 0:00:29.8]}
34... f6 {[%clk 0:01:00.5]} 35. Bd6 {[%clk 0:00:24.6]} 35... Nb6 {[%clk
0:00:53.5]} 36. Bc5 {[%clk 0:00:14.2]} 36... Nc4 {[%clk 0:00:43.2]} 37. Bxa7
{[%clk 0:00:13.5]} 37... Nd6 {[%clk 0:00:42.1]} 38. Re5 {[%clk 0:00:09.1]} 38...
fxe5 {[%clk 0:00:40.4]} 39. dxe5 {[%clk 0:00:10]} 39... Nc4 {[%clk 0:00:31.7]}
40. Bd4 {[%clk 0:00:07.8]} 40... Bxg4 {[%clk 0:00:28.2]} 41. fxg4 {[%clk
0:00:08.7]} 41... Kf7 {[%clk 0:00:28.3]} 42. Kg3 {[%clk 0:00:05.6]} 42... Nxa3
{[%clk 0:00:26.9]} 43. f5 {[%clk 0:00:06]} 43... Nc2 {[%clk 0:00:27]} 44. e6+
{[%clk 0:00:06.9]} 44... Ke8 {[%clk 0:00:26.9]} 45. Be5 {[%clk 0:00:04]} 45...
Ne3 {[%clk 0:00:20.5]} 46. f6 {[%clk 0:00:04.2]} 46... Rxg4+ {[%clk 0:00:20]}
47. Kf3 {[%clk 0:00:04.3]} 47... Rg1 {[%clk 0:00:10.9]} 48. f7+ {[%clk
0:00:04.5]} 48... Ke7 {[%clk 0:00:11]} 49. Bd6+ {[%clk 0:00:04.3]} 49... Kxe6
{[%clk 0:00:11.1]} 50. f8=Q {[%clk 0:00:04]} 50... Rf1+ {[%clk 0:00:11.2]} 51.
Kxe3 {[%clk 0:00:04.6]} 51... Rxf8 {[%clk 0:00:11.5]} 52. Bxf8 {[%clk
0:00:05.5]} 52... Kf5 {[%clk 0:00:11.2]} 53. Bxh6 {[%clk 0:00:05.7]} 53... Kg4
{[%clk 0:00:11.7]} 54. Bg7 {[%clk 0:00:04.8]} 54... Kxh5 {[%clk 0:00:12.6]} 55.
Kd4 {[%clk 0:00:05.4]} 55... Kg6 {[%clk 0:00:13.1]} 56. Bh8 {[%clk 0:00:05.6]}
56... Kh7 {[%clk 0:00:13.2]} 57. Be5 {[%clk 0:00:05.3]} 57... Kg6 {[%clk
0:00:13.6]} 58. Kc5 {[%clk 0:00:06.2]} 58... Kf5 {[%clk 0:00:13.9]} 59. Bb2
{[%clk 0:00:06.5]} 59... Ke4 {[%clk 0:00:14.1]} 60. Kxc6 {[%clk 0:00:06.9]}
60... d4 {[%clk 0:00:14.6]} 61. Bxd4 {[%clk 0:00:07.4]} 61... Kxd4 {[%clk
0:00:15.5]} 62. Kxb5 {[%clk 0:00:08.3]} 62... Kd5 {[%clk 0:00:16.4]} 63. Ka6
{[%clk 0:00:08.5]} 63... Kd6 {[%clk 0:00:17.3]} 64. b5 {[%clk 0:00:09.4]} 64...
Kc7 {[%clk 0:00:17.5]} 65. Ka7 {[%clk 0:00:09.4]} 65... Kd6 {[%clk 0:00:17.7]}
66. b6 {[%clk 0:00:10.3]} 66... Kc5 {[%clk 0:00:18.5]} 67. b7 {[%clk 0:00:11.2]}
67... Kb4 {[%clk 0:00:19.4]} 68. b8=Q+ {[%clk 0:00:12.1]} 68... Ka3 {[%clk
0:00:20.3]} 69. Qf4 {[%clk 0:00:12.1]} 1-0

[Event "*** Titled Tuesday Blitz"]
[Site "Chess.com"]
[Date "2020.11.10"]
[Round "6"]
[White "lefonghua"]
[Black "DenisQ"]
[Result "1/2-1/2"]
[WhiteElo "2493"]
[BlackElo "2631"]
[TimeControl "180+1"]
[EndTime "11:11:06 PST"]
[Termination "Game drawn by repetition"]

1. d4 {[%clk 0:03:00.9]} 1... Nf6 {[%clk 0:02:59.4]} 2. c4 {[%clk 0:02:58.6]}
2... c6 {[%clk 0:02:58]} 3. Nf3 {[%clk 0:02:54]} 3... d5 {[%clk 0:02:57.7]} 4.
Nc3 {[%clk 0:02:54.2]} 4... e6 {[%clk 0:02:56.7]} 5. e3 {[%clk 0:02:54.5]} 5...
Nbd7 {[%clk 0:02:55.9]} 6. Qc2 {[%clk 0:02:54.4]} 6... Bd6 {[%clk 0:02:54.7]} 7.
b3 {[%clk 0:02:54.8]} 7... O-O {[%clk 0:02:53.9]} 8. Be2 {[%clk 0:02:54.1]} 8...
b6 {[%clk 0:02:53.3]} 9. O-O {[%clk 0:02:51.1]} 9... Bb7 {[%clk 0:02:53.3]} 10.
Bb2 {[%clk 0:02:51.7]} 10... Qe7 {[%clk 0:02:50.5]} 11. Rad1 {[%clk 0:02:48.8]}
11... Rfd8 {[%clk 0:02:46.7]} 12. Rfe1 {[%clk 0:02:48.7]} 12... Rac8 {[%clk
0:02:45.4]} 13. h3 {[%clk 0:02:46.1]} 13... a6 {[%clk 0:02:36.3]} 14. Qb1 {[%clk
0:02:35.7]} 14... c5 {[%clk 0:02:27.3]} 15. cxd5 {[%clk 0:02:35.1]} 15... exd5
{[%clk 0:02:26.8]} 16. Bf1 {[%clk 0:02:24.6]} 16... g6 {[%clk 0:02:11]} 17. a4
{[%clk 0:02:14.5]} 17... Re8 {[%clk 0:01:50.2]} 18. Qa1 {[%clk 0:02:03.2]} 18...
cxd4 {[%clk 0:01:33.5]} 19. Nxd4 {[%clk 0:02:00.8]} 19... Nc5 {[%clk 0:01:27.2]}
20. b4 {[%clk 0:01:49.1]} 20... Nce4 {[%clk 0:01:24.1]} 21. Nxe4 {[%clk
0:01:38.3]} 21... Nxe4 {[%clk 0:01:13.5]} 22. b5 {[%clk 0:01:38.5]} 22... axb5
{[%clk 0:01:11.2]} 23. Nxb5 {[%clk 0:01:32.6]} 23... Bb8 {[%clk 0:01:02.7]} 24.
Bd4 {[%clk 0:01:11.6]} 24... Rc2 {[%clk 0:00:54.9]} 25. Re2 {[%clk 0:01:09.1]}
25... Rxe2 {[%clk 0:00:51.7]} 26. Bxe2 {[%clk 0:01:10]} 26... Qh4 {[%clk
0:00:44.5]} 27. Rf1 {[%clk 0:01:08.3]} 27... Nd2 {[%clk 0:00:42.1]} 28. Bh8
{[%clk 0:00:51.1]} 28... d4 {[%clk 0:00:37.2]} 29. Bxd4 {[%clk 0:00:21.7]} 29...
Nxf1 {[%clk 0:00:36]} 30. Bxf1 {[%clk 0:00:22.4]} 30... Qe7 {[%clk 0:00:30.1]}
31. Bc4 {[%clk 0:00:18.5]} 31... Be5 {[%clk 0:00:26.9]} 32. f3 {[%clk
0:00:16.4]} 32... Kg7 {[%clk 0:00:26]} 33. f4 {[%clk 0:00:15.4]} 33... Bxd4
{[%clk 0:00:25.4]} 34. Qxd4+ {[%clk 0:00:16.3]} 34... Qf6 {[%clk 0:00:25.5]} 35.
Kf2 {[%clk 0:00:16.6]} 35... Qxd4 {[%clk 0:00:24.9]} 36. Nxd4 {[%clk 0:00:17.5]}
36... Rd8 {[%clk 0:00:23.8]} 37. Bb5 {[%clk 0:00:17.7]} 37... Be4 {[%clk
0:00:22.6]} 38. g3 {[%clk 0:00:17.4]} 38... Rc8 {[%clk 0:00:22.5]} 39. Ke1
{[%clk 0:00:17.1]} 39... Rc3 {[%clk 0:00:22.2]} 40. Kd2 {[%clk 0:00:16.6]} 40...
Ra3 {[%clk 0:00:22.3]} 41. h4 {[%clk 0:00:13]} 41... h5 {[%clk 0:00:21.6]} 42.
Kc1 {[%clk 0:00:12.3]} 42... Rxe3 {[%clk 0:00:21]} 43. Ne2 {[%clk 0:00:10.8]}
43... Bd3 {[%clk 0:00:20.1]} 44. Kd2 {[%clk 0:00:10.2]} 44... Rxe2+ {[%clk
0:00:19.2]} 45. Kxd3 {[%clk 0:00:10.8]} 45... Rg2 {[%clk 0:00:20.1]} 46. Kd4
{[%clk 0:00:11.2]} 46... Rxg3 {[%clk 0:00:20.3]} 47. Kd5 {[%clk 0:00:11.9]}
47... Rg4 {[%clk 0:00:19.7]} 48. Kc6 {[%clk 0:00:12.5]} 48... Rxh4 {[%clk
0:00:20.2]} 49. Kxb6 {[%clk 0:00:13.1]} 49... Rxf4 {[%clk 0:00:20.8]} 50. a5
{[%clk 0:00:13.3]} 50... Rf6+ {[%clk 0:00:21.4]} 51. Bc6 {[%clk 0:00:13.8]}
51... Rf2 {[%clk 0:00:20]} 52. a6 {[%clk 0:00:14.1]} 52... Rb2+ {[%clk
0:00:20.7]} 53. Bb5 {[%clk 0:00:13.4]} 53... Ra2 {[%clk 0:00:21.1]} 54. a7
{[%clk 0:00:13.9]} 54... Rxa7 {[%clk 0:00:20.6]} 55. Kxa7 {[%clk 0:00:14.8]}
55... Kf6 {[%clk 0:00:20.8]} 56. Kb6 {[%clk 0:00:15.3]} 56... Ke5 {[%clk
0:00:21.5]} 57. Kc5 {[%clk 0:00:16]} 57... f5 {[%clk 0:00:21.9]} 58. Be8 {[%clk
0:00:15.4]} 58... Kf6 {[%clk 0:00:21.1]} 59. Kd4 {[%clk 0:00:15.6]} 59... h4
{[%clk 0:00:21.8]} 60. Ke3 {[%clk 0:00:15.8]} 60... g5 {[%clk 0:00:22.3]} 61.
Kf2 {[%clk 0:00:16.1]} 61... g4 {[%clk 0:00:22.2]} 62. Bc6 {[%clk 0:00:15.8]}
62... Kg5 {[%clk 0:00:22.4]} 63. Kg2 {[%clk 0:00:16]} 63... f4 {[%clk
0:00:22.5]} 64. Bb7 {[%clk 0:00:15.7]} 64... h3+ {[%clk 0:00:22.6]} 65. Kh2
{[%clk 0:00:14]} 65... Kh4 {[%clk 0:00:23.2]} 66. Ba8 {[%clk 0:00:14.1]} 66...
g3+ {[%clk 0:00:23.2]} 67. Kg1 {[%clk 0:00:14.6]} 67... Kg4 {[%clk 0:00:23.9]}
68. Bb7 {[%clk 0:00:14.2]} 68... f3 {[%clk 0:00:24.1]} 69. Bc8+ {[%clk
0:00:14.7]} 69... Kh4 {[%clk 0:00:24]} 70. Bb7 {[%clk 0:00:13.8]} 70... f2+
{[%clk 0:00:20.6]} 71. Kf1 {[%clk 0:00:11.8]} 71... Kg5 {[%clk 0:00:21.2]} 72.
Bc8 {[%clk 0:00:09]} 72... Kh4 {[%clk 0:00:20.6]} 73. Bb7 {[%clk 0:00:09.2]}
73... Kg4 {[%clk 0:00:19]} 74. Bc8+ {[%clk 0:00:09.5]} 74... Kh4 {[%clk
0:00:18.1]} 75. Bb7 {[%clk 0:00:09.8]} 1/2-1/2

[Event "*** Titled Tuesday Blitz"]
[Site "Chess.com"]
[Date "2020.11.10"]
[Round "6"]
[White "Gusarov91"]
[Black "BogdanDeac"]
[Result "0-1"]
[WhiteElo "2636"]
[BlackElo "2808"]
[TimeControl "180+1"]
[EndTime "11:11:08 PST"]
[Termination "BogdanDeac won by resignation"]

1. d4 {[%clk 0:03:00.9]} 1... Nf6 {[%clk 0:02:59.5]} 2. Nf3 {[%clk 0:03:01.3]}
2... d5 {[%clk 0:02:58.8]} 3. c4 {[%clk 0:03:01.4]} 3... e6 {[%clk 0:02:58.7]}
4. Nc3 {[%clk 0:03:01.5]} 4... dxc4 {[%clk 0:02:56.6]} 5. e3 {[%clk 0:03:01.8]}
5... a6 {[%clk 0:02:56.4]} 6. a4 {[%clk 0:03:02.1]} 6... c5 {[%clk 0:02:56.4]}
7. Bxc4 {[%clk 0:03:02.2]} 7... Nc6 {[%clk 0:02:56.8]} 8. O-O {[%clk 0:03:01.9]}
8... Be7 {[%clk 0:02:56.3]} 9. Qe2 {[%clk 0:02:58.7]} 9... cxd4 {[%clk
0:02:56.2]} 10. Rd1 {[%clk 0:02:58.7]} 10... O-O {[%clk 0:02:56]} 11. exd4
{[%clk 0:02:58.9]} 11... Nb4 {[%clk 0:02:55.4]} 12. Ne5 {[%clk 0:02:57.3]} 12...
b6 {[%clk 0:02:01.5]} 13. Qf3 {[%clk 0:02:48.1]} 13... Ra7 {[%clk 0:01:52.3]}
14. Be3 {[%clk 0:02:46.8]} 14... Rc7 {[%clk 0:01:48.9]} 15. Bb3 {[%clk 0:02:44]}
15... Bb7 {[%clk 0:01:43.3]} 16. Qh3 {[%clk 0:02:43.6]} 16... Nbd5 {[%clk
0:01:40.4]} 17. Rac1 {[%clk 0:02:40.6]} 17... Nxc3 {[%clk 0:01:20.9]} 18. bxc3
{[%clk 0:02:36.9]} 18... Ba3 {[%clk 0:01:20.4]} 19. Rc2 {[%clk 0:02:31.8]} 19...
Be4 {[%clk 0:01:12.8]} 20. Ra2 {[%clk 0:02:27.1]} 20... Bd6 {[%clk 0:00:34.5]}
21. Bg5 {[%clk 0:02:20.7]} 21... h6 {[%clk 0:00:28.1]} 22. Bd2 {[%clk
0:01:39.8]} 22... Bf5 {[%clk 0:00:23.9]} 23. Qf3 {[%clk 0:01:35.7]} 23... b5
{[%clk 0:00:15.1]} 24. axb5 {[%clk 0:01:28.5]} 24... axb5 {[%clk 0:00:16]} 25.
Rda1 {[%clk 0:01:19.6]} 25... Ne4 {[%clk 0:00:14.4]} 26. Be1 {[%clk 0:01:17.4]}
26... Bxe5 {[%clk 0:00:10.2]} 27. dxe5 {[%clk 0:01:17.4]} 27... Nc5 {[%clk
0:00:10.5]} 28. Ra8 {[%clk 0:01:13.4]} 28... Rc8 {[%clk 0:00:09.9]} 29. Rxc8
{[%clk 0:01:11.5]} 29... Qxc8 {[%clk 0:00:10.8]} 30. Bd1 {[%clk 0:01:09.2]}
30... Nd3 {[%clk 0:00:10.9]} 31. Bd2 {[%clk 0:01:03]} 31... Nxe5 {[%clk
0:00:10.6]} 32. Qg3 {[%clk 0:01:02.3]} 32... Ng6 {[%clk 0:00:11.1]} 33. h4
{[%clk 0:00:56.2]} 33... Rd8 {[%clk 0:00:10.5]} 34. Be1 {[%clk 0:00:51.5]} 34...
Qc5 {[%clk 0:00:08.5]} 35. h5 {[%clk 0:00:50.9]} 35... Ne5 {[%clk 0:00:08.4]}
36. Be2 {[%clk 0:00:48.6]} 36... Bd3 {[%clk 0:00:05.7]} 37. Qh4 {[%clk
0:00:45.3]} 37... Rc8 {[%clk 0:00:03.7]} 38. Bd1 {[%clk 0:00:42.4]} 38... Bf5
{[%clk 0:00:02.3]} 39. Qg3 {[%clk 0:00:36.7]} 39... Nc4 {[%clk 0:00:02.7]} 40.
Be2 {[%clk 0:00:30.8]} 40... Qd6 {[%clk 0:00:01.5]} 41. Qh4 {[%clk 0:00:27.8]}
41... Qe5 {[%clk 0:00:01.2]} 42. Bf1 {[%clk 0:00:25.9]} 42... Re8 {[%clk
0:00:01.3]} 43. f3 {[%clk 0:00:19.8]} 43... Qc5+ {[%clk 0:00:01.3]} 44. Bf2
{[%clk 0:00:20.2]} 44... Qd5 {[%clk 0:00:02.2]} 45. Bd4 {[%clk 0:00:20.6]} 45...
e5 {[%clk 0:00:02.2]} 46. Bf2 {[%clk 0:00:20.9]} 46... Qd2 {[%clk 0:00:02.4]}
47. Ra7 {[%clk 0:00:19.3]} 47... Qxc3 {[%clk 0:00:02.1]} 48. Re7 {[%clk
0:00:19.3]} 48... Rxe7 {[%clk 0:00:02]} 49. Qxe7 {[%clk 0:00:19.6]} 49... Be6
{[%clk 0:00:02.6]} 50. Qe8+ {[%clk 0:00:19.9]} 50... Kh7 {[%clk 0:00:02.8]} 51.
Qb8 {[%clk 0:00:19.6]} 51... e4 {[%clk 0:00:03.3]} 52. Qxb5 {[%clk 0:00:19.4]}
52... Nd2 {[%clk 0:00:03.5]} 53. fxe4 {[%clk 0:00:18.1]} 53... Qc1 {[%clk
0:00:03.8]} 54. Qd3 {[%clk 0:00:17.6]} 54... Bc4 {[%clk 0:00:02.8]} 55. e5+
{[%clk 0:00:15.7]} 55... Bxd3 {[%clk 0:00:02.6]} 56. Kh2 {[%clk 0:00:16.1]}
56... Qc3 {[%clk 0:00:02.3]} 57. Bd4 {[%clk 0:00:15.2]} 57... Qxd4 {[%clk
0:00:02.2]} 58. Bxd3+ {[%clk 0:00:16.1]} 58... Qxd3 {[%clk 0:00:03.1]} 59. e6
{[%clk 0:00:16.5]} 59... Ne4 {[%clk 0:00:03.5]} 60. e7 {[%clk 0:00:16.7]} 60...
Qg3+ {[%clk 0:00:04.4]} 61. Kh1 {[%clk 0:00:16.9]} 61... Qe1+ {[%clk 0:00:04.5]}
62. Kh2 {[%clk 0:00:17.5]} 62... Qh4+ {[%clk 0:00:05.4]} 63. Kg1 {[%clk
0:00:18.1]} 63... Qxe7 {[%clk 0:00:06.3]} 64. g4 {[%clk 0:00:18.3]} 64... Qg5
{[%clk 0:00:07.2]} 65. Kh2 {[%clk 0:00:18.5]} 65... Qh4+ {[%clk 0:00:07.5]} 66.
Kg2 {[%clk 0:00:18.7]} 66... Qxg4+ {[%clk 0:00:08.4]} 67. Kh2 {[%clk 0:00:19.3]}
67... Qxh5+ {[%clk 0:00:09.3]} 68. Kg2 {[%clk 0:00:19.3]} 68... Qg6+ {[%clk
0:00:10.2]} 69. Kf3 {[%clk 0:00:20.2]} 69... f5 {[%clk 0:00:11.1]} 70. Ke3
{[%clk 0:00:20.9]} 70... Qg4 {[%clk 0:00:11.8]} 71. Kd4 {[%clk 0:00:21.2]} 71...
h5 {[%clk 0:00:12.7]} 72. Ke5 {[%clk 0:00:22.1]} 72... h4 {[%clk 0:00:13.6]} 73.
Ke6 {[%clk 0:00:22.8]} 73... h3 {[%clk 0:00:14.5]} 74. Kf7 {[%clk 0:00:23.7]}
74... h2 {[%clk 0:00:15.4]} 75. Kf8 {[%clk 0:00:24.6]} 75... h1=Q {[%clk
0:00:16.3]} 76. Kf7 {[%clk 0:00:25.5]} 76... Ng5+ {[%clk 0:00:16.3]} 77. Kf8
{[%clk 0:00:26.4]} 0-1

[Event "*** Titled Tuesday Blitz"]
[Site "Chess.com"]
[Date "2020.11.10"]
[Round "6"]
[White "Shtembuliak"]
[Black "dropstoneDP"]
[Result "0-1"]
[WhiteElo "2867"]
[BlackElo "2930"]
[TimeControl "180+1"]
[EndTime "11:11:10 PST"]
[Termination "dropstoneDP won on time"]

1. c4 {[%clk 0:03:00.9]} 1... e5 {[%clk 0:02:56.9]} 2. Nc3 {[%clk 0:03:00.6]}
2... Bb4 {[%clk 0:02:55.9]} 3. Nd5 {[%clk 0:02:59.5]} 3... Be7 {[%clk
0:02:55.9]} 4. d4 {[%clk 0:02:57.5]} 4... exd4 {[%clk 0:02:55.5]} 5. Qxd4 {[%clk
0:02:55.7]} 5... Nf6 {[%clk 0:02:55.9]} 6. Nxe7 {[%clk 0:02:55.5]} 6... Qxe7
{[%clk 0:02:56.8]} 7. Bg5 {[%clk 0:02:55.5]} 7... Nc6 {[%clk 0:02:56.9]} 8. Qc3
{[%clk 0:02:46.8]} 8... Ne5 {[%clk 0:02:45.3]} 9. Nf3 {[%clk 0:02:45.7]} 9... d6
{[%clk 0:02:45.6]} 10. Nxe5 {[%clk 0:02:46]} 10... dxe5 {[%clk 0:02:46.5]} 11.
e3 {[%clk 0:02:42.8]} 11... Bf5 {[%clk 0:02:44.6]} 12. Be2 {[%clk 0:02:29.6]}
12... Ne4 {[%clk 0:02:08.3]} 13. Bxe7 {[%clk 0:02:29]} 13... Nxc3 {[%clk
0:02:08.6]} 14. Bb4 {[%clk 0:02:29.1]} 14... Nxe2 {[%clk 0:02:07.9]} 15. Kxe2
{[%clk 0:02:30]} 15... O-O-O {[%clk 0:01:58.6]} 16. Rhd1 {[%clk 0:02:25.2]}
16... Bc2 {[%clk 0:01:58.6]} 17. Rd2 {[%clk 0:02:20.3]} 17... Rxd2+ {[%clk
0:01:57.7]} 18. Kxd2 {[%clk 0:02:21.2]} 18... Be4 {[%clk 0:01:53.7]} 19. f3
{[%clk 0:02:20.9]} 19... Rd8+ {[%clk 0:01:53.8]} 20. Ke1 {[%clk 0:02:18.9]}
20... Bd3 {[%clk 0:01:40.4]} 21. b3 {[%clk 0:02:16.5]} 21... e4 {[%clk
0:01:36.1]} 22. Rd1 {[%clk 0:02:13.4]} 22... f5 {[%clk 0:01:34.2]} 23. h4 {[%clk
0:02:09.8]} 23... b6 {[%clk 0:01:26.5]} 24. Kf2 {[%clk 0:02:09.1]} 24... a5
{[%clk 0:01:25.4]} 25. Bc3 {[%clk 0:02:09.2]} 25... g6 {[%clk 0:01:24]} 26. Kg3
{[%clk 0:02:06.5]} 26... Bc2 {[%clk 0:01:09.7]} 27. Rc1 {[%clk 0:02:00.7]} 27...
Bd3 {[%clk 0:00:55.6]} 28. Kf4 {[%clk 0:01:57.9]} 28... c5 {[%clk 0:00:52.4]}
29. Kg5 {[%clk 0:01:48.4]} 29... exf3 {[%clk 0:00:37.7]} 30. gxf3 {[%clk
0:01:48.1]} 30... Be2 {[%clk 0:00:38.4]} 31. Kf4 {[%clk 0:01:44.5]} 31... Rd1
{[%clk 0:00:29.1]} 32. Rc2 {[%clk 0:01:44.6]} 32... Bd3 {[%clk 0:00:27.3]} 33.
Rh2 {[%clk 0:01:45]} 33... Rf1 {[%clk 0:00:22.8]} 34. h5 {[%clk 0:01:40.6]}
34... Be4 {[%clk 0:00:21.2]} 35. Rh3 {[%clk 0:01:30.2]} 35... gxh5 {[%clk
0:00:20.9]} 36. Bf6 {[%clk 0:01:21.7]} 36... Kb7 {[%clk 0:00:18.6]} 37. Rg3
{[%clk 0:01:18.2]} 37... a4 {[%clk 0:00:11.8]} 38. bxa4 {[%clk 0:01:16.6]} 38...
Ka6 {[%clk 0:00:12.1]} 39. Bd8 {[%clk 0:01:13.8]} 39... Ka5 {[%clk 0:00:10.8]}
40. Bc7 {[%clk 0:01:11.9]} 40... h4 {[%clk 0:00:10.4]} 41. Rh3 {[%clk
0:01:12.2]} 41... h5 {[%clk 0:00:09.7]} 42. Bd8 {[%clk 0:01:08.4]} 42... Kxa4
{[%clk 0:00:08.3]} 43. Bxb6 {[%clk 0:01:06.5]} 43... Kb4 {[%clk 0:00:08.9]} 44.
a4 {[%clk 0:00:29.4]} 44... Kxc4 {[%clk 0:00:09.1]} 45. a5 {[%clk 0:00:18.6]}
45... Kb5 {[%clk 0:00:08.6]} 46. Rxh4 {[%clk 0:00:13.7]} 46... Rxf3+ {[%clk
0:00:08.8]} 47. Ke5 {[%clk 0:00:14.2]} 47... c4 {[%clk 0:00:04.6]} 48. Bd4
{[%clk 0:00:12.8]} 48... Kxa5 {[%clk 0:00:03.4]} 49. Rxh5 {[%clk 0:00:13.3]}
49... Kb4 {[%clk 0:00:03.6]} 50. Rh8 {[%clk 0:00:13.4]} 50... Kb3 {[%clk
0:00:02.9]} 51. Rb8+ {[%clk 0:00:14.3]} 51... Kc2 {[%clk 0:00:03.3]} 52. Rc8
{[%clk 0:00:08.3]} 52... Kd3 {[%clk 0:00:03.5]} 53. Rc7 {[%clk 0:00:08.2]} 53...
Rf1 {[%clk 0:00:03.6]} 54. Rh7 {[%clk 0:00:06.7]} 54... Re1 {[%clk 0:00:03.2]}
55. Rh2 {[%clk 0:00:04.9]} 55... c3 {[%clk 0:00:03]} 56. Kf4 {[%clk 0:00:03.8]}
56... c2 {[%clk 0:00:02.8]} 57. Bb2 {[%clk 0:00:04]} 57... Rb1 {[%clk 0:00:03]}
58. Ba3 {[%clk 0:00:03.8]} 58... Ra1 {[%clk 0:00:03.7]} 59. Bb2 {[%clk
0:00:04.1]} 59... Rf1+ {[%clk 0:00:04.4]} 60. Ke5 {[%clk 0:00:03.2]} 60... Rb1
{[%clk 0:00:05.1]} 61. Ba3 {[%clk 0:00:03.5]} 61... c1=Q {[%clk 0:00:05.6]} 62.
Bxc1 {[%clk 0:00:03.9]} 62... Rxc1 {[%clk 0:00:06.5]} 63. Rh3 {[%clk 0:00:04.1]}
63... Rf1 {[%clk 0:00:06.3]} 64. Rg3 {[%clk 0:00:03.7]} 64... Re1 {[%clk
0:00:06.9]} 65. Kf4 {[%clk 0:00:03.4]} 65... Re2 {[%clk 0:00:06.6]} 66. Rh3
{[%clk 0:00:03.3]} 66... Rg2 {[%clk 0:00:06.8]} 67. Ke5 {[%clk 0:00:01.7]} 67...
Rg4 {[%clk 0:00:07.1]} 0-1